[Event "CZE-ch Youth G10-G12-G14 2022"]
[Site "Luhacovice"]
[Date "2022.03.17"]
[Round "7.41"]
[White "Dufkova, Tereza"]
[Black "Myskova, Veronika"]
[Result "0-1"]
[ECO "B30"]
[WhiteElo "1014"]
[BlackElo "1117"]
[Annotator "NA"]
[PlyCount "61"]
[EventDate "2022.03.12"]
[EventType "swiss"]
[EventCountry "CZE"]
[SourceTitle "playchess.com"]
[Source "ChessBase"]
[SourceQuality "1"]
[TimeControl "40/5400+30:1800+30"]

1. e4 {[%emt 0:00:03]} c5 {[%emt 0:00:10]} 2. Bc4 {[%emt 0:00:40]} Nc6 {[%emt 0:01:42]} 3. Nf3 {[%emt 0:00:10]} e6 {[%emt 0:00:30]} 4. e5 {[%emt 0:00:52]} g6 {[%emt 0:00:29]} 5. O-O {[%emt 0:00:22]} Bg7 {[%emt 0:00:12]} 6. Re1 {[%emt 0:00:28]} d6 {[%emt 0:01:18]} 7. exd6 {[%emt 0:01:02]} Qxd6 {[%emt 0:01:07]} 8. Nc3 {[%emt 0:00:23]} Nf6 {[%emt 0:01:30]} 9. d3 {[%emt 0:00:54]} O-O {[%emt 0:02:19]} 10. a3 {[%emt 0:05:08]} b6 {[%emt 0:03:33]} 11. b4 {[%emt 0:00:30]} cxb4 {[%emt 0:02:52]} 12. Na4 {[%emt 0:00:53]} Nd5 {[%emt 0:11:45]} 13. Ra2 {[%emt 0:00:32]} a6 {[%emt 0:04:03]} 14. Nb2 {[%emt 0:02:35]} Nc3 {[%emt 0:00:24]} 15. Qd2 {[%emt 0:00:48]} Nxa2 {[%emt 0:00:22]} 16. Bxa2 {[%emt 0:00:19]} Bc3 {[%emt 0:05:36]} 17. Qh6 {[%emt 0:00:36]} Bg7 {[%emt 0:00:34]} 18. Qe3 {[%emt 0:01:44]} bxa3 {[%emt 0:01:34]} 19. Nc4 {[%emt 0:00:33]} Qc5 {[%emt 0:01:53]} 20. Qf4 {[%emt 0:00:45]} Qf5 {[%emt 0:04:02]} 21. Qh4 {[%emt 0:01:30]} b5 {[%emt 0:03:49]} 22. Nd6 {[%emt 0:01:52]} Qh5 {[%emt 0:02:05]} 23. Qe4 {[%emt 0:00:26]} Qc5 {[%emt 0:02:25]} 24. Bf4 {[%emt 0:02:16]} Bd7 {[%emt 0:04:30]} 25. Nb7 {[%emt 0:07:08]} Qxc2 {[%emt 0:00:22]} 26. Bb1 {[%emt 0:01:00]} Qb2 {[%emt 0:03:53]} 27. d4 {[%emt 0:09:43]} a2 {[%emt 0:02:05]} 28. Bxa2 {[%emt 0:01:32]} Qxa2 {[%emt 0:00:18]} 29. Bd2 {[%emt 0:03:22]} a5 {[%emt 0:01:26]} 30. Qh4 {[%emt 0:01:32]} Nxd4 {[%emt 0:04:31]} 31. Nxd4 {[%emt 0:00:36]} 0-1

[Event "CZE-ch Youth G10-G12-G14 2022"]
[Site "Luhacovice"]
[Date "2022.03.17"]
[Round "7.42"]
[White "Zilava Lucie"]
[Black "Svrchokrylova, Ludmila"]
[Result "0-1"]
[ECO "C30"]
[WhiteElo "1059"]
[BlackElo "1024"]
[Annotator "NA"]
[PlyCount "148"]
[EventDate "2022.03.12"]
[EventType "swiss"]
[EventCountry "CZE"]
[SourceTitle "playchess.com"]
[Source "ChessBase"]
[SourceQuality "1"]
[TimeControl "40/5400+30:1800+30"]

1. e4 {[%emt 0:00:05]} e5 {[%emt 0:00:09]} 2. Nc3 {[%emt 0:00:04]} Nc6 {[%emt 0:01:40]} 3. Bc4 {[%emt 0:00:26]} Bc5 {[%emt 0:00:09]} 4. d3 {[%emt 0:00:13]} d6 {[%emt 0:00:16]} 5. f4 {[%emt 0:00:07]} Nf6 {[%emt 0:08:55]} 6. Nf3 {[%emt 0:01:19]} Bg4 {[%emt 0:00:49]} 7. h3 {[%emt 0:00:34]} Bxf3 {[%emt 0:02:51]} 8. gxf3 {[%emt 0:01:04]} Qd7 {[%emt 0:03:21]} 9. Bd2 {[%emt 0:01:39]} O-O-O {[%emt 0:02:35]} 10. Qe2 {[%emt 0:00:18]} Nd4 {[%emt 0:01:28]} 11. Qd1 {[%emt 0:01:05]} Nh5 {[%emt 0:02:31]} 12. Be3 {[%emt 0:02:00]} Nxf4 {[%emt 0:01:36]} 13. Bxd4 {[%emt 0:03:15]} Bxd4 {[%emt 0:00:21]} 14. Qd2 {[%emt 0:00:46]} f6 {[%emt 0:01:29]} 15. O-O-O {[%emt 0:00:24]} Bxc3 {[%emt 0:00:16]} 16. bxc3 {[%emt 0:00:17]} Nxh3 {[%emt 0:02:01]} 17. d4 {[%emt 0:00:27]} Nf4 {[%emt 0:01:19]} 18. d5 {[%emt 0:03:45]} h5 {[%emt 0:00:43]} 19. Qe3 {[%emt 0:01:56]} Kb8 {[%emt 0:01:34]} 20. Kb1 {[%emt 0:00:44]} Qa4 {[%emt 0:02:03]} 21. Bb3 {[%emt 0:00:54]} Qb5 {[%emt 0:01:06]} 22. c4 {[%emt 0:00:41]} Qb6 {[%emt 0:00:54]} 23. Qxb6 {[%emt 0:00:53]} axb6 {[%emt 0:00:15]} 24. Rdg1 {[%emt 0:01:18]} g5 {[%emt 0:00:30]} 25. Rh2 {[%emt 0:02:40]} h4 {[%emt 0:00:19]} 26. Kc1 {[%emt 0:00:21]} Rdg8 {[%emt 0:00:18]} 27. Kd2 {[%emt 0:00:32]} c5 {[%emt 0:01:04]} 28. a4 {[%emt 0:01:02]} Kc7 {[%emt 0:01:58]} 29. c3 {[%emt 0:01:13]} Rg7 {[%emt 0:03:12]} 30. Bd1 {[%emt 0:00:22]} Ra8 {[%emt 0:02:36]} 31. Rhh1 {[%emt 0:00:50]} Ng6 {[%emt 0:03:57]} 32. Ke3 {[%emt 0:00:35]} Rh7 {[%emt 0:00:48]} 33. Rg2 {[%emt 0:01:53]} Nf8 {[%emt 0:00:32]} 34. Rgg1 {[%emt 0:00:55]} Nd7 {[%emt 0:00:21]} 35. Rg2 {[%emt 0:00:19]} b5 {[%emt 0:01:01]} 36. axb5 {[%emt 0:01:58]} Nb6 {[%emt 0:01:02]} 37. Kd3 {[%emt 0:00:24]} Na4 {[%emt 0:00:30]} 38. Ra2 {[%emt 0:00:27]} Nb6 {[%emt 0:00:13]} 39. Rg2 {[%emt 0:00:19]} Nd7 {[%emt 0:00:33]} 40. Rhh2 {[%emt 0:01:14]} Rhh8 {[%emt 0:01:38]} 41. Rb2 {[%emt 0:30:22]} b6 {[%emt 0:30:16]} 42. Rbg2 {[%emt 0:00:45]} Ra7 {[%emt 0:00:21]} 43. Be2 {[%emt 0:01:15]} Nf8 {[%emt 0:01:15]} 44. Kc2 {[%emt 0:01:56]} Ng6 {[%emt 0:00:34]} 45. Rg1 {[%emt 0:00:54]} Nf4 {[%emt 0:01:08]} 46. Rgh1 {[%emt 0:01:28]} Ra2+ {[%emt 0:00:30]} 47. Kd1 {[%emt 0:00:20]} Nxe2 {[%emt 0:00:19]} 48. Rxe2 {[%emt 0:00:15]} Rxe2 {[%emt 0:00:24]} 49. Kxe2 {[%emt 0:00:30]} Kd7 {[%emt 0:00:14]} 50. Kf2 {[%emt 0:00:43]} Ke7 {[%emt 0:00:12]} 51. Kg2 {[%emt 0:00:23]} Kf7 {[%emt 0:00:07]} 52. Kh3 {[%emt 0:00:12]} Kg6 {[%emt 0:00:27]} 53. Kg4 {[%emt 0:00:14]} Ra8 {[%emt 0:01:12]} 54. Rc1 {[%emt 0:00:30]} Ra2 {[%emt 0:01:12]} 55. Kh3 {[%emt 0:01:15]} f5 {[%emt 0:00:32]} 56. Rd1 {[%emt 0:01:16]} fxe4 {[%emt 0:02:57]} 57. fxe4 {[%emt 0:00:16]} Kh5 {[%emt 0:00:13]} 58. Rg1 {[%emt 0:00:55]} Rc2 {[%emt 0:00:32]} 59. Rg2 {[%emt 0:01:00]} Rxg2 {[%emt 0:00:24]} 60. Kxg2 {[%emt 0:00:19]} g4 {[%emt 0:00:23]} 61. Kh2 {[%emt 0:01:00]} Kg5 {[%emt 0:00:20]} 62. Kg2 {[%emt 0:00:21]} Kf4 {[%emt 0:00:12]} 63. Kf2 {[%emt 0:00:14]} h3 {[%emt 0:00:28]} 64. Kg1 {[%emt 0:00:19]} Kf3 {[%emt 0:00:30]} 65. Kh2 {[%emt 0:00:26]} g3+ {[%emt 0:00:49]} 66. Kh1 {[%emt 0:00:08]} g2+ {[%emt 0:00:24]} 67. Kg1 {[%emt 0:00:13]} h2+ {[%emt 0:00:18]} 68. Kxh2 {[%emt 0:00:09]} Kf2 {[%emt 0:00:06]} 69. Kh3 {[%emt 0:00:23]} g1=Q {[%emt 0:00:17]} 70. Kh4 {[%emt 0:00:08]} Kf3 {[%emt 0:00:15]} 71. Kh5 {[%emt 0:00:16]} Kxe4 {[%emt 0:00:34]} 72. Kh6 {[%emt 0:00:43]} Kf5 {[%emt 0:00:06]} 73. Kh7 {[%emt 0:00:13]} Kf6 {[%emt 0:00:08]} 74. Kh8 {[%emt 0:00:19]} Qg7# {[%emt 0:00:25]} 0-1

[Event "CZE-ch Youth G10-G12-G14 2022"]
[Site "Luhacovice"]
[Date "2022.03.18"]
[Round "8.1"]
[White "Lackova, Lucie"]
[Black "Romanko Diana"]
[Result "1-0"]
[ECO "C01"]
[WhiteElo "1142"]
[BlackElo "1000"]
[Annotator "NA"]
[PlyCount "95"]
[EventDate "2022.03.12"]
[EventType "swiss"]
[EventCountry "CZE"]
[SourceTitle "playchess.com"]
[Source "ChessBase"]
[SourceQuality "1"]
[TimeControl "40/5400+30:1800+30"]

1. e4 {[%emt 0:00:03]} e6 {[%emt 0:00:05]} 2. d4 {[%emt 0:00:25]} d5 {[%emt 0:00:05]} 3. exd5 {[%emt 0:00:57]} exd5 {[%emt 0:00:08]} 4. Nf3 {[%emt 0:00:21]} Bd6 {[%emt 0:01:24]} 5. Nc3 {[%emt 0:01:01]} c6 {[%emt 0:00:53]} 6. Be2 {[%emt 0:00:33]} Bf5 {[%emt 0:00:40]} 7. O-O {[%emt 0:00:31]} Qc7 {[%emt 0:01:27]} 8. Re1 {[%emt 0:00:55]} Ne7 {[%emt 0:01:29]} 9. Bd3 {[%emt 0:02:41]} Bg4 {[%emt 0:02:33]} 10. h3 {[%emt 0:00:32]} Bh5 {[%emt 0:02:44]} 11. Qe2 {[%emt 0:11:12]} O-O {[%emt 0:04:15]} 12. Nd1 {[%emt 0:14:21]} Re8 {[%emt 0:01:05]} 13. Ne3 {[%emt 0:00:42]} c5 {[%emt 0:02:59]} 14. c3 {[%emt 0:02:24]} Nd7 {[%emt 0:03:13]} 15. Qd1 {[%emt 0:05:59]} Nf6 {[%emt 0:01:57]} 16. Nf5 {[%emt 0:13:50]} Nxf5 {[%emt 0:00:43]} 17. Bxf5 {[%emt 0:05:49]} Rxe1+ {[%emt 0:01:05]} 18. Qxe1 {[%emt 0:00:19]} Bxf3 {[%emt 0:00:35]} 19. gxf3 {[%emt 0:00:11]} Bf4 {[%emt 0:02:01]} 20. dxc5 {[%emt 0:06:08]} Bxc1 {[%emt 0:01:25]} 21. Rxc1 {[%emt 0:00:25]} Qxc5 {[%emt 0:02:27]} 22. Qe5 {[%emt 0:08:13]} Re8 {[%emt 0:05:44]} 23. Qg3 {[%emt 0:07:25]} d4 {[%emt 0:03:08]} 24. Bd3 {[%emt 0:04:30]} Rd8 {[%emt 0:03:26]} 25. Qh4 {[%emt 0:02:26]} dxc3 {[%emt 0:01:58]} 26. Rxc3 {[%emt 0:00:54]} Qe5 {[%emt 0:04:02]} 27. Bxh7+ {[%emt 0:02:28]} Kf8 {[%emt 0:01:00]} 28. Qb4+ {[%emt 0:01:26]} Qe7 {[%emt 0:01:02]} 29. Qxe7+ {[%emt 0:02:13]} Kxe7 {[%emt 0:00:17]} 30. Bc2 {[%emt 0:00:33]} Nd5 {[%emt 0:01:17]} 31. Rc4 {[%emt 0:01:07]} Kf8 {[%emt 0:01:07]} 32. Rd4 {[%emt 0:00:48]} Ke8 {[%emt 0:01:36]} 33. Bb3 {[%emt 0:01:06]} Nf6 {[%emt 0:00:57]} 34. Bxf7+ {[%emt 0:00:35]} Ke7 {[%emt 0:00:20]} 35. Rxd8 {[%emt 0:00:06]} Kxd8 {[%emt 0:00:28]} 36. Kg2 {[%emt 0:00:31]} Ke7 {[%emt 0:00:37]} 37. Bg6 {[%emt 0:00:35]} a5 {[%emt 0:01:37]} 38. Kg3 {[%emt 0:00:18]} b5 {[%emt 0:04:12]} 39. Kf4 {[%emt 0:01:15]} Nd5+ {[%emt 0:00:35]} 40. Ke5 {[%emt 0:00:38]} Nb4 {[%emt 0:00:25]} 41. Bb1 {[%emt 0:30:36]} Kd7 {[%emt 0:30:18]} 42. f4 {[%emt 0:00:45]} a4 {[%emt 0:00:24]} 43. f5 {[%emt 0:00:39]} Nc6+ {[%emt 0:00:09]} 44. Kf4 {[%emt 0:00:33]} Ke7 {[%emt 0:00:28]} 45. Kg5 {[%emt 0:00:17]} Kf7 {[%emt 0:00:11]} 46. h4 {[%emt 0:00:11]} b4 {[%emt 0:00:17]} 47. Be4 {[%emt 0:00:52]} Nd4 {[%emt 0:01:24]} 48. Bd5+ {[%emt 0:00:26]} 1-0

[Event "CZE-ch Youth G10-G12-G14 2022"]
[Site "Luhacovice"]
[Date "2022.03.18"]
[Round "8.2"]
[White "Janouskova, Eliska"]
[Black "Vanickova Natalie"]
[Result "1-0"]
[ECO "B11"]
[WhiteElo "1167"]
[BlackElo "1000"]
[Annotator "NA"]
[PlyCount "55"]
[EventDate "2022.03.12"]
[EventType "swiss"]
[EventCountry "CZE"]
[SourceTitle "playchess.com"]
[Source "ChessBase"]
[SourceQuality "1"]
[TimeControl "40/5400+30:1800+30"]

1. e4 {[%emt 0:00:09]} c6 {[%emt 0:00:17]} 2. Nf3 {[%emt 0:01:00]} d5 {[%emt 0:01:02]} 3. Nc3 {[%emt 0:01:50]} d4 {[%emt 0:01:10]} 4. Ne2 {[%emt 0:02:00]} c5 {[%emt 0:01:45]} 5. c3 {[%emt 0:01:53]} d3 {[%emt 0:01:23]} 6. Nf4 {[%emt 0:01:23]} c4 {[%emt 0:02:21]} 7. Qa4+ {[%emt 0:01:00]} Nc6 {[%emt 0:04:22]} 8. Qxc4 {[%emt 0:01:38]} g6 {[%emt 0:02:21]} 9. Nxd3 {[%emt 0:04:56]} Bg7 {[%emt 0:02:48]} 10. Nf4 {[%emt 0:05:29]} e5 {[%emt 0:01:22]} 11. Nd5 {[%emt 0:03:12]} Nf6 {[%emt 0:04:05]} 12. Nxf6+ {[%emt 0:01:30]} Qxf6 {[%emt 0:01:14]} 13. Be2 {[%emt 0:05:16]} O-O {[%emt 0:02:44]} 14. O-O {[%emt 0:01:46]} Be6 {[%emt 0:00:31]} 15. Qa4 {[%emt 0:01:36]} Rad8 {[%emt 0:03:19]} 16. d4 {[%emt 0:00:43]} exd4 {[%emt 0:02:11]} 17. Bg5 {[%emt 0:01:29]} Bb3 {[%emt 0:04:01]} 18. Qxb3 {[%emt 0:02:40]} Qd6 {[%emt 0:00:56]} 19. Bxd8 {[%emt 0:00:47]} Rxd8 {[%emt 0:00:23]} 20. Rad1 {[%emt 0:01:16]} a6 {[%emt 0:02:44]} 21. Bc4 {[%emt 0:03:14]} Na5 {[%emt 0:05:45]} 22. Bxf7+ {[%emt 0:01:51]} Kf8 {[%emt 0:00:42]} 23. Qe6 {[%emt 0:01:01]} Qc7 {[%emt 0:01:43]} 24. Ng5 {[%emt 0:00:13]} Bh6 {[%emt 0:03:00]} 25. Nxh7+ {[%emt 0:02:04]} Kg7 {[%emt 0:01:20]} 26. Qxg6+ {[%emt 0:00:07]} Kh8 {[%emt 0:00:41]} 27. Nf8 {[%emt 0:01:18]} Rxf8 {[%emt 0:00:57]} 28. Qxh6# {[%emt 0:00:07]} 1-0

[Event "CZE-ch Youth G10-G12-G14 2022"]
[Site "Luhacovice"]
[Date "2022.03.18"]
[Round "8.3"]
[White "Lickova, Anna"]
[Black "Kusova, Nikola"]
[Result "1/2-1/2"]
[ECO "C42"]
[WhiteElo "1016"]
[BlackElo "1227"]
[Annotator "NA"]
[PlyCount "106"]
[EventDate "2022.03.12"]
[EventType "swiss"]
[EventCountry "CZE"]
[SourceTitle "playchess.com"]
[Source "ChessBase"]
[SourceQuality "1"]
[TimeControl "40/5400+30:1800+30"]

1. e4 {[%emt 0:00:03]} e5 {[%emt 0:00:12]} 2. Nf3 {[%emt 0:00:20]} Nf6 {[%emt 0:00:20]} 3. Nxe5 {[%emt 0:00:14]} d6 {[%emt 0:00:10]} 4. Nf3 {[%emt 0:00:10]} Nxe4 {[%emt 0:00:16]} 5. Nc3 {[%emt 0:00:16]} Nf6 {[%emt 0:00:23]} 6. d4 {[%emt 0:00:30]} d5 {[%emt 0:00:37]} 7. Bf4 {[%emt 0:01:37]} Bb4 {[%emt 0:02:11]} 8. Bd3 {[%emt 0:01:24]} Nc6 {[%emt 0:01:43]} 9. O-O {[%emt 0:01:37]} O-O {[%emt 0:00:27]} 10. Re1 {[%emt 0:06:24]} Bg4 {[%emt 0:03:15]} 11. Be2 {[%emt 0:06:31]} Bxc3 {[%emt 0:03:02]} 12. bxc3 {[%emt 0:00:32]} Ne4 {[%emt 0:00:56]} 13. c4 {[%emt 0:04:27]} Nc3 {[%emt 0:04:37]} 14. Qd3 {[%emt 0:04:46]} Nxe2+ {[%emt 0:01:29]} 15. Rxe2 {[%emt 0:02:34]} dxc4 {[%emt 0:00:50]} 16. Qxc4 {[%emt 0:01:08]} Bxf3 {[%emt 0:01:37]} 17. gxf3 {[%emt 0:00:51]} Qxd4 {[%emt 0:01:00]} 18. Qxd4 {[%emt 0:08:16]} Nxd4 {[%emt 0:00:11]} 19. Re7 {[%emt 0:08:42]} Rfe8 {[%emt 0:02:32]} 20. Rxe8+ {[%emt 0:03:12]} Rxe8 {[%emt 0:00:17]} 21. Bxc7 {[%emt 0:01:37]} Nxf3+ {[%emt 0:00:22]} 22. Kg2 {[%emt 0:01:24]} Ne1+ {[%emt 0:03:44]} 23. Kg3 {[%emt 0:01:32]} Nxc2 {[%emt 0:02:21]} 24. Rd1 {[%emt 0:01:41]} Kf8 {[%emt 0:02:01]} 25. Bd6+ {[%emt 0:00:35]} Kg8 {[%emt 0:00:50]} 26. Rc1 {[%emt 0:02:13]} Nd4 {[%emt 0:02:30]} 27. Kh3 {[%emt 0:02:29]} h6 {[%emt 0:01:37]} 28. Rc7 {[%emt 0:00:28]} Nb5 {[%emt 0:00:37]} 29. Rd7 {[%emt 0:01:37]} Nxd6 {[%emt 0:01:06]} 30. Rxd6 {[%emt 0:00:28]} Re2 {[%emt 0:01:40]} 31. Rd7 {[%emt 0:01:28]} Rxf2 {[%emt 0:02:46]} 32. Rxb7 {[%emt 0:00:38]} Rxa2 {[%emt 0:00:14]} 33. Rb8+ {[%emt 0:00:21]} Kh7 {[%emt 0:00:11]} 34. Ra8 {[%emt 0:01:29]} f5 {[%emt 0:01:54]} 35. Rf8 {[%emt 0:00:53]} g6 {[%emt 0:01:03]} 36. Kg3 {[%emt 0:00:23]} Kg7 {[%emt 0:03:15]} 37. Rc8 {[%emt 0:00:21]} Kf6 {[%emt 0:01:54]} 38. Rc6+ {[%emt 0:00:26]} Kf7 {[%emt 0:00:48]} 39. Rc7+ {[%emt 0:00:26]} Ke8 {[%emt 0:01:47]} 40. Rg7 {[%emt 0:00:37]} a5 {[%emt 0:00:18]} 41. Rxg6 {[%emt 0:30:27]} f4+ {[%emt 0:32:26]} 42. Kxf4 {[%emt 0:00:28]} Rxh2 {[%emt 0:00:10]} 43. Ra6 {[%emt 0:01:45]} a4 {[%emt 0:00:26]} 44. Kg3 {[%emt 0:00:31]} Ra2 {[%emt 0:00:52]} 45. Rxh6 {[%emt 0:00:17]} a3 {[%emt 0:01:26]} 46. Ra6 {[%emt 0:00:28]} Ra1 {[%emt 0:00:18]} 47. Kf2 {[%emt 0:00:10]} Kd7 {[%emt 0:00:35]} 48. Ke2 {[%emt 0:00:16]} Kc7 {[%emt 0:00:28]} 49. Kd2 {[%emt 0:00:26]} Kb7 {[%emt 0:00:22]} 50. Ra4 {[%emt 0:00:06]} Kb6 {[%emt 0:01:36]} 51. Kc2 {[%emt 0:00:50]} Kb5 {[%emt 0:00:46]} 52. Ra8 {[%emt 0:00:08]} Kc5 {[%emt 0:02:12]} 53. Kb3 {[%emt 0:00:47]} Rb1+ {[%emt 0:02:08]} 1/2-1/2

[Event "CZE-ch Youth G10-G12-G14 2022"]
[Site "Luhacovice"]
[Date "2022.03.18"]
[Round "8.4"]
[White "Hujova Tess"]
[Black "Silhankova Simona"]
[Result "0-1"]
[ECO "A21"]
[WhiteElo "1000"]
[BlackElo "1000"]
[Annotator "NA"]
[PlyCount "47"]
[EventDate "2022.03.12"]
[EventType "swiss"]
[EventCountry "CZE"]
[SourceTitle "playchess.com"]
[Source "ChessBase"]
[SourceQuality "1"]
[TimeControl "40/5400+30:1800+30"]

1. c4 {[%emt 0:00:09]} e5 {[%emt 0:00:33]} 2. Nc3 {[%emt 0:00:19]} f5 {[%emt 0:00:35]} 3. g3 {[%emt 0:00:25]} Nf6 {[%emt 0:00:55]} 4. Bg2 {[%emt 0:01:20]} g6 {[%emt 0:00:25]} 5. d3 {[%emt 0:01:03]} Bg7 {[%emt 0:00:32]} 6. f4 {[%emt 0:01:44]} Nc6 {[%emt 0:01:39]} 7. fxe5 {[%emt 0:01:56]} Nxe5 {[%emt 0:00:37]} 8. Nf3 {[%emt 0:01:33]} Nc6 {[%emt 0:00:36]} 9. O-O {[%emt 0:00:46]} O-O {[%emt 0:00:16]} 10. d4 {[%emt 0:02:03]} Ne7 {[%emt 0:01:00]} 11. Bg5 {[%emt 0:01:34]} h6 {[%emt 0:00:43]} 12. Bxf6 {[%emt 0:00:50]} Bxf6 {[%emt 0:00:28]} 13. Qd2 {[%emt 0:01:03]} g5 {[%emt 0:00:35]} 14. Ne5 {[%emt 0:01:39]} d6 {[%emt 0:00:48]} 15. Nf3 {[%emt 0:00:48]} Ng6 {[%emt 0:01:48]} 16. Ne1 {[%emt 0:01:22]} h5 {[%emt 0:02:32]} 17. Bd5+ {[%emt 0:02:50]} Kh8 {[%emt 0:00:43]} 18. h4 {[%emt 0:01:58]} Kg7 {[%emt 0:03:19]} 19. Nf3 {[%emt 0:02:10]} f4 {[%emt 0:00:55]} 20. hxg5 {[%emt 0:01:30]} Bxg5 {[%emt 0:02:16]} 21. gxf4 {[%emt 0:02:15]} Bxf4 {[%emt 0:02:15]} 22. Qd3 {[%emt 0:00:31]} Nh4 {[%emt 0:02:19]} 23. Nxh4 {[%emt 0:03:35]} Qxh4 {[%emt 0:01:26]} 24. Nb5 {[%emt 0:03:52]} 0-1

[Event "CZE-ch Youth G10-G12-G14 2022"]
[Site "Luhacovice"]
[Date "2022.03.18"]
[Round "8.5"]
[White "Koutna Simona"]
[Black "Stepankova Linda"]
[Result "0-1"]
[ECO "A22"]
[WhiteElo "1000"]
[BlackElo "1000"]
[Annotator "NA"]
[PlyCount "108"]
[EventDate "2022.03.12"]
[EventType "swiss"]
[EventCountry "CZE"]
[SourceTitle "playchess.com"]
[Source "ChessBase"]
[SourceQuality "1"]
[TimeControl "40/5400+30:1800+30"]

1. c4 {[%emt 0:00:06]} e5 {[%emt 0:00:03]} 2. Nc3 {[%emt 0:00:11]} Nf6 {[%emt 0:00:08]} 3. g3 {[%emt 0:00:09]} d5 {[%emt 0:02:15]} 4. cxd5 {[%emt 0:01:13]} Nxd5 {[%emt 0:00:12]} 5. Bg2 {[%emt 0:00:31]} Nxc3 {[%emt 0:00:45]} 6. bxc3 {[%emt 0:00:18]} Nc6 {[%emt 0:00:46]} 7. e4 {[%emt 0:01:14]} Bc5 {[%emt 0:00:41]} 8. Nf3 {[%emt 0:00:57]} O-O {[%emt 0:00:48]} 9. O-O {[%emt 0:00:07]} Bg4 {[%emt 0:02:32]} 10. h3 {[%emt 0:02:11]} Bh5 {[%emt 0:01:06]} 11. d3 {[%emt 0:02:08]} Qf6 {[%emt 0:08:14]} 12. Bg5 {[%emt 0:03:58]} Bxf3 {[%emt 0:02:15]} 13. Bxf6 {[%emt 0:01:28]} Bxd1 {[%emt 0:00:10]} 14. Bxg7 {[%emt 0:00:11]} Kxg7 {[%emt 0:00:19]} 15. Rfxd1 {[%emt 0:00:28]} Rad8 {[%emt 0:00:32]} 16. Rab1 {[%emt 0:00:27]} b6 {[%emt 0:00:26]} 17. Rd2 {[%emt 0:01:21]} f5 {[%emt 0:01:38]} 18. Rbd1 {[%emt 0:00:55]} f4 {[%emt 0:01:08]} 19. gxf4 {[%emt 0:02:22]} Rxf4 {[%emt 0:01:33]} 20. d4 {[%emt 0:01:55]} exd4 {[%emt 0:00:15]} 21. cxd4 {[%emt 0:00:11]} Rxd4 {[%emt 0:00:44]} 22. Rxd4 {[%emt 0:00:53]} Bxd4 {[%emt 0:00:07]} 23. Rd2 {[%emt 0:00:25]} a5 {[%emt 0:01:12]} 24. Rc2 {[%emt 0:00:30]} Nb4 {[%emt 0:00:38]} 25. Rxc7+ {[%emt 0:01:14]} Kg6 {[%emt 0:00:50]} 26. Kh2 {[%emt 0:01:34]} Rxf2 {[%emt 0:02:32]} 27. Rc4 {[%emt 0:00:28]} Bc5 {[%emt 0:01:42]} 28. e5 {[%emt 0:00:25]} Rxa2 {[%emt 0:04:57]} 29. Rg4+ {[%emt 0:00:37]} Kf5 {[%emt 0:01:05]} 30. Rh4 {[%emt 0:00:31]} Kxe5 {[%emt 0:00:31]} 31. Rh5+ {[%emt 0:01:19]} Kd4 {[%emt 0:00:30]} 32. Kg3 {[%emt 0:01:04]} a4 {[%emt 0:01:53]} 33. Rh4+ {[%emt 0:00:21]} Kc3 {[%emt 0:00:40]} 34. Rxh7 {[%emt 0:01:31]} a3 {[%emt 0:00:36]} 35. Bd5 {[%emt 0:00:20]} Nxd5 {[%emt 0:00:21]} 36. h4 {[%emt 0:01:05]} Rb2 {[%emt 0:00:52]} 37. h5 {[%emt 0:00:29]} a2 {[%emt 0:00:17]} 38. Ra7 {[%emt 0:00:08]} Kb3 {[%emt 0:00:48]} 39. h6 {[%emt 0:00:13]} Rb1 {[%emt 0:00:29]} 40. h7 {[%emt 0:00:18]} Rh1 {[%emt 0:00:31]} 41. Kg2 {[%emt 0:30:23]} Rxh7 {[%emt 0:30:27]} 42. Rxh7 {[%emt 0:00:19]} a1=Q {[%emt 0:01:30]} 43. Rh3+ {[%emt 0:00:30]} Qc3 {[%emt 0:00:30]} 44. Rxc3+ {[%emt 0:01:17]} Kxc3 {[%emt 0:00:07]} 45. Kf1 {[%emt 0:00:00]} b5 {[%emt 0:00:00]} 46. Ke1 {[%emt 0:00:04]} b4 {[%emt 0:00:00]} 47. Kd1 {[%emt 0:00:10]} b3 {[%emt 0:00:00]} 48. Kc1 {[%emt 0:00:15]} Be3+ {[%emt 0:00:00]} 49. Kb1 {[%emt 0:00:21]} b2 {[%emt 0:00:00]} 50. Ka2 {[%emt 0:00:25]} Kc2 {[%emt 0:00:00]} 51. Ka3 {[%emt 0:00:16]} b1=Q {[%emt 0:00:00]} 52. Ka4 {[%emt 0:00:51]} Qb2 {[%emt 0:00:00]} 53. Ka5 {[%emt 0:00:13]} Qb3 {[%emt 0:00:00]} 54. Ka6 {[%emt 0:00:16]} Qb6# {[%emt 0:00:00]} 0-1

[Event "CZE-ch Youth G10-G12-G14 2022"]
[Site "Luhacovice"]
[Date "2022.03.18"]
[Round "8.6"]
[White "Zadrapova Gabriela"]
[Black "Vancakova, Veronika"]
[Result "0-1"]
[ECO "C42"]
[WhiteElo "1000"]
[BlackElo "1300"]
[Annotator "NA"]
[PlyCount "66"]
[EventDate "2022.03.12"]
[EventType "swiss"]
[EventCountry "CZE"]
[SourceTitle "playchess.com"]
[Source "ChessBase"]
[SourceQuality "1"]
[TimeControl "40/5400+30:1800+30"]

1. e4 {[%emt 0:00:15]} e5 {[%emt 0:00:02]} 2. Nf3 {[%emt 0:00:20]} Nf6 {[%emt 0:00:03]} 3. Nxe5 {[%emt 0:00:43]} d6 {[%emt 0:00:02]} 4. Nf3 {[%emt 0:00:30]} Nxe4 {[%emt 0:00:03]} 5. Nc3 {[%emt 0:01:12]} Nxc3 {[%emt 0:00:03]} 6. dxc3 {[%emt 0:00:35]} Be7 {[%emt 0:00:58]} 7. Be3 {[%emt 0:00:55]} Nc6 {[%emt 0:08:46]} 8. Qd2 {[%emt 0:01:28]} Be6 {[%emt 0:05:55]} 9. a3 {[%emt 0:04:06]} Bf6 {[%emt 0:02:22]} 10. O-O-O {[%emt 0:04:01]} a6 {[%emt 0:00:34]} 11. Ng5 {[%emt 0:01:20]} Qd7 {[%emt 0:06:19]} 12. Nxe6 {[%emt 0:02:18]} fxe6 {[%emt 0:00:29]} 13. Bg5 {[%emt 0:01:17]} O-O-O {[%emt 0:04:30]} 14. Bxf6 {[%emt 0:00:25]} gxf6 {[%emt 0:00:04]} 15. Bd3 {[%emt 0:04:35]} Ne5 {[%emt 0:04:03]} 16. Be4 {[%emt 0:03:50]} f5 {[%emt 0:00:44]} 17. Bf3 {[%emt 0:02:38]} Nxf3 {[%emt 0:01:52]} 18. gxf3 {[%emt 0:01:12]} Rhg8 {[%emt 0:05:23]} 19. Rhg1 {[%emt 0:03:04]} Qf7 {[%emt 0:08:33]} 20. Rg5 {[%emt 0:03:43]} Rxg5 {[%emt 0:02:34]} 21. Qxg5 {[%emt 0:00:48]} Rg8 {[%emt 0:00:03]} 22. Qe3 {[%emt 0:01:55]} Kb8 {[%emt 0:01:02]} 23. f4 {[%emt 0:01:16]} Qf6 {[%emt 0:05:54]} 24. Qf3 {[%emt 0:01:34]} Qg6 {[%emt 0:12:05]} 25. Rd4 {[%emt 0:00:32]} Qg2 {[%emt 0:01:47]} 26. Qh5 {[%emt 0:04:58]} Qg1+ {[%emt 0:02:33]} 27. Rd1 {[%emt 0:01:30]} Qxf2 {[%emt 0:02:27]} 28. Rd4 {[%emt 0:00:39]} Rg1+ {[%emt 0:00:12]} 29. Rd1 {[%emt 0:00:36]} Qxf4+ {[%emt 0:00:24]} 30. Kb1 {[%emt 0:00:36]} Rxd1+ {[%emt 0:00:06]} 31. Qxd1 {[%emt 0:00:24]} Qxh2 {[%emt 0:00:14]} 32. c4 {[%emt 0:01:58]} Qf2 {[%emt 0:05:22]} 33. Qh5 {[%emt 0:00:35]} Qf1+ {[%emt 0:00:15]} 0-1